[Event "Romanian Superliga 2024"]
[Site "Mamaia"]
[Date "2024.10.03"]
[Round "6.27"]
[White "Marin, Mihail"]
[Black "Anton, Teodor"]
[Result "1-0"]
[ECO "A13"]
[WhiteElo "2455"]
[BlackElo "2427"]
[Annotator "RC"]
[PlyCount "91"]
[EventDate "2024.09.26"]
[EventType "team-tourn"]
[EventCountry "ROU"]
[SourceTitle "playchess.com"]
[Source "ChessBase"]
[SourceQuality "1"]
[TimeControl "40/5400+30:1800+30"]

1. c4 {[%emt 0:00:27]} e6 {[%emt 0:00:16]} 2. g3 {[%emt 0:00:06]} d5 {[%emt 0:00:06]} 3. Bg2 {[%emt 0:00:04]} d4 {[%emt 0:01:29]} 4. Nf3 {[%emt 0:00:06]} Nc6 {[%emt 0:00:09]} 5. O-O {[%emt 0:00:07]} Nh6 {[%emt 0:00:21]} 6. e3 {[%emt 0:00:07]} Nf5 {[%emt 0:00:35]} 7. e4 {[%emt 0:00:18]} Nfe7 {[%emt 0:00:05]} 8. e5 {[%emt 0:00:11]} Nf5 {[%emt 0:07:00]} 9. d3 {[%emt 0:00:42]} h5 {[%emt 0:00:13]} 10. h4 {[%emt 0:07:04]} b6 {[%emt 0:25:37]} 11. Nbd2 {[%emt 0:05:46]} Bb7 {[%emt 0:01:06]} 12. Ne4 {[%emt 0:00:07]} Be7 {[%emt 0:04:38]} 13. a3 {[%emt 0:02:22]} a5 {[%emt 0:01:40]} 14. b3 {[%emt 0:00:46]} Nh6 {[%emt 0:11:44]} 15. Re1 {[%emt 0:11:46]} Ng4 {[%emt 0:01:09]} 16. Neg5 {[%emt 0:00:52]} Qd7 {[%emt 0:06:27]} 17. Bf4 {[%emt 0:17:09]} Nd8 {[%emt 0:06:24]} 18. Nh2 {[%emt 0:12:53]} Bxg2 {[%emt 0:05:31]} 19. Kxg2 {[%emt 0:00:11]} f6 {[%emt 0:04:01]} 20. Ne4 {[%emt 0:05:40]} Nf7 {[%emt 0:04:25]} 21. Nxg4 {[%emt 0:12:39]} hxg4 {[%emt 0:00:29]} 22. exf6 {[%emt 0:00:04]} gxf6 {[%emt 0:00:45]} 23. Qxg4 {[%emt 0:00:09]} f5 {[%emt 0:01:40]} 24. Qg6 {[%emt 0:00:35]} fxe4 {[%emt 0:04:34]} 25. Rxe4 {[%emt 0:01:41]} Kf8 {[%emt 0:02:08]} 26. Rxe6 {[%emt 0:02:37]} Bd6 {[%emt 0:02:06]} 27. Bxd6+ {[%emt 0:02:30]} cxd6 {[%emt 0:00:04]} 28. Qe4 {[%emt 0:03:20]} Re8 {[%emt 0:02:09]} 29. Rxe8+ {[%emt 0:00:12]} Qxe8 {[%emt 0:00:03]} 30. Re1 {[%emt 0:05:45]} Qxe4+ {[%emt 0:00:36]} 31. Rxe4 {[%emt 0:00:18]} Rh5 {[%emt 0:02:31]} 32. Rxd4 {[%emt 0:00:28]} Re5 {[%emt 0:00:05]} 33. Kf1 {[%emt 0:04:55]} a4 {[%emt 0:03:16]} 34. b4 {[%emt 0:00:28]} Ke7 {[%emt 0:00:07]} 35. f4 {[%emt 0:00:34]} Re6 {[%emt 0:00:51]} 36. Kf2 {[%emt 0:02:14]} Nh6 {[%emt 0:00:10]} 37. Re4 {[%emt 0:01:34]} Nf5 {[%emt 0:00:29]} 38. Rxe6+ {[%emt 0:01:51]} Kxe6 {[%emt 0:00:04]} 39. g4 {[%emt 0:00:18]} Nd4 {[%emt 0:01:37]} 40. Ke3 {[%emt 0:00:00]} Nc2+ {[%emt 0:00:00]} 41. Kd2 {[%emt 0:02:18]} Nxa3 {[%emt 0:03:27]} 42. b5 {[%emt 0:08:05]} d5 {[%emt 0:02:16]} 43. c5 {[%emt 0:05:47]} Nxb5 {[%emt 0:17:03]} 44. cxb6 {[%emt 0:00:08]} Kd7 {[%emt 0:00:38]} 45. g5 {[%emt 0:05:40]} a3 {[%emt 0:08:52]} 46. Kc1 {[%emt 0:02:00]} 1-0

[Event "Romanian Superliga 2024"]
[Site "Mamaia"]
[Date "2024.10.03"]
[Round "6.29"]
[White "Secheres, Adrian-Simion"]
[Black "Tugui, Adrian"]
[Result "1-0"]
[ECO "E90"]
[WhiteElo "2344"]
[BlackElo "2326"]
[Annotator "RC"]
[PlyCount "77"]
[EventDate "2024.09.26"]
[EventType "team-tourn"]
[EventCountry "ROU"]
[SourceTitle "playchess.com"]
[Source "ChessBase"]
[SourceQuality "1"]
[TimeControl "40/5400+30:1800+30"]

1. d4 {[%emt 0:02:19]} Nf6 {[%emt 0:00:27]} 2. c4 {[%emt 0:00:27]} c5 {[%emt 0:00:24]} 3. d5 {[%emt 0:00:15]} g6 {[%emt 0:01:11]} 4. Nc3 {[%emt 0:00:58]} Bg7 {[%emt 0:01:04]} 5. e4 {[%emt 0:00:46]} d6 {[%emt 0:00:30]} 6. h3 {[%emt 0:00:33]} O-O {[%emt 0:01:30]} 7. Nf3 {[%emt 0:00:43]} e6 {[%emt 0:04:06]} 8. Be2 {[%emt 0:00:11]} exd5 {[%emt 0:01:02]} 9. exd5 {[%emt 0:00:09]} Bf5 {[%emt 0:20:56]} 10. g4 {[%emt 0:00:13]} Be4 {[%emt 0:03:52]} 11. O-O {[%emt 0:00:24]} Bxf3 {[%emt 0:01:32]} 12. Bxf3 {[%emt 0:00:06]} Nbd7 {[%emt 0:31:29]} 13. Bg5 {[%emt 0:04:31]} a6 {[%emt 0:05:26]} 14. a4 {[%emt 0:05:10]} Re8 {[%emt 0:03:14]} 15. Qd2 {[%emt 0:20:18]} Qe7 {[%emt 0:05:01]} 16. Rae1 {[%emt 0:23:55]} Qf8 {[%emt 0:00:13]} 17. Bh4 {[%emt 0:00:31]} h6 {[%emt 0:08:03]} 18. Bg3 {[%emt 0:01:49]} Rxe1 {[%emt 0:00:26]} 19. Rxe1 {[%emt 0:00:26]} Re8 {[%emt 0:00:09]} 20. Rf1 {[%emt 0:04:40]} Ne5 {[%emt 0:00:49]} 21. Be2 {[%emt 0:00:19]} Ned7 {[%emt 0:00:11]} 22. Qc2 {[%emt 0:01:53]} Qe7 {[%emt 0:01:09]} 23. Bd1 {[%emt 0:08:11]} Nh7 {[%emt 0:05:15]} 24. Kg2 {[%emt 0:01:45]} Nhf6 {[%emt 0:02:56]} 25. f3 {[%emt 0:01:18]} b6 {[%emt 0:01:12]} 26. Qd2 {[%emt 0:03:48]} Qf8 {[%emt 0:00:42]} 27. Bc2 {[%emt 0:01:22]} Ne5 {[%emt 0:00:30]} 28. b3 {[%emt 0:00:22]} Ned7 {[%emt 0:00:09]} 29. h4 {[%emt 0:05:36]} Nh7 {[%emt 0:00:53]} 30. Ne4 {[%emt 0:01:05]} Be5 {[%emt 0:00:35]} 31. f4 {[%emt 0:01:01]} Bd4 {[%emt 0:00:30]} 32. f5 {[%emt 0:01:18]} Rxe4 {[%emt 0:00:30]} 33. Bxe4 {[%emt 0:00:26]} g5 {[%emt 0:00:27]} 34. f6 {[%emt 0:00:19]} Ndxf6 {[%emt 0:00:35]} 35. Bf5 {[%emt 0:00:17]} gxh4 {[%emt 0:00:28]} 36. Bf4 {[%emt 0:04:04]} h5 {[%emt 0:00:31]} 37. Bh6 {[%emt 0:03:55]} Qe7 {[%emt 0:00:28]} 38. g5 {[%emt 0:02:07]} Ng4 {[%emt 0:00:28]} 39. g6 {[%emt 0:01:19]} 1-0